bitfinex-derivatives/quotes_BTCF0:USTF0_20251125
["timestamp","ask_amount","ask_price","bid_price","bid_amount"]
[1764084796531,0.09164,87037.0,87036.0,0.06100874]
[1764084796737,0.197026,87036.0,87035.0,0.0611811]
[1764084797042,1.047026,87036.0,87035.0,0.00017236]
[1764084797241,0.0114973,87026.0,87024.0,0.06100874]
[1764084797443,0.18553,87024.0,87021.0,0.18252]
[1764084797746,0.18553,87022.0,87021.0,0.387588]
[1764084798149,0.45244,87025.0,87024.0,0.19357]
[1764084798345,0.3608,87039.0,87022.0,0.05803]
[1764084798346,0.00017236,87033.0,87029.0,0.0114968]
[1764084798645,0.00017236,87033.0,87032.0,0.19357]
[1764084801447,0.3608,87053.0,87052.0,0.2050639]
[1764084801645,0.3608,87053.0,87052.0,0.19357]
[1764084802739,0.3608,87053.0,87052.0,0.37613]
[1764084803543,0.00017236,87061.0,87060.0,0.19357]
[1764084803848,0.18570236,87061.0,87060.0,0.19357]
[1764084804037,0.18570236,87061.0,87060.0,0.09642]
[1764084804239,0.0114928,87060.0,87056.0,0.18252]
[1764084804443,0.18553,87057.0,87056.0,0.18252]
[1764084804648,0.59553,87057.0,87056.0,0.18252]
[1764084804842,0.18553,87049.0,87048.0,0.05803]
[1764084805045,0.18553,87049.0,87048.0,0.24055]
[1764084805341,0.3608,87051.0,87050.0,0.19357]
[1764084805547,0.45244,87051.0,87050.0,0.19357]
[1764084805745,0.0114929,87060.0,87051.0,0.011494]
[1764084805945,0.3608,87055.0,87054.0,0.19357]
[1764084806246,0.09164,87055.0,87054.0,0.19357]
[1764084806549,0.00017236,87061.0,87060.0,0.2516]
[1764084807536,0.00017236,87061.0,87060.0,0.2630928]
[1764084809352,0.00017236,87061.0,87060.0,0.6238928]
[1764084813150,0.00017236,87061.0,87060.0,0.5538928]
[1764084813647,0.3608,87081.0,87080.0,0.19357]
[1764084813843,0.3608,87081.0,87080.0,0.3875402]
[1764084814043,0.3608,87089.0,87088.0,0.19357]
[1764084814438,0.45244,87089.0,87088.0,0.19357]
[1764084814643,0.3608,87089.0,87088.0,0.19357]
[1764084814845,0.3608,87089.0,87088.0,0.2050591]
[1764084815442,0.09365244,87131.0,87102.0,0.2050573]
[1764084815443,0.0114847,87122.0,87102.0,0.2050573]
[1764084815641,0.3608,87109.0,87102.0,0.19357]
[1764084815841,0.19376189,87103.0,87102.0,0.19357]
[1764084816245,0.19376189,87103.0,87096.0,0.05803]
[1764084816246,0.00823189,87103.0,87096.0,0.05803]
[1764084816553,0.00823189,87103.0,87102.0,0.18248]
[1764084816554,0.20524909,87103.0,87102.0,0.18248]
[1764084816747,0.20524909,87103.0,87090.0,0.11549527]
[1764084816748,0.011488,87097.0,87096.0,0.19357]
[1764084816951,0.372288,87097.0,87096.0,0.37609]
[1764084817148,0.463928,87097.0,87096.0,0.19357]
[1764084817352,0.0114893,87088.0,87087.0,0.19357]
[1764084817742,0.3608,87097.0,87087.0,0.37605]
[1764084817944,0.3608,87097.0,87096.0,0.19357]
[1764084818142,0.3722879,87097.0,87096.0,0.19357]
[1764084818352,0.3608,87097.0,87096.0,0.2630881]
[1764084818542,0.3608,87097.0,87096.0,0.2516]
[1764084819540,0.00823189,87103.0,87102.0,0.09642]
[1764084819747,0.09987189,87103.0,87102.0,0.09642]
[1764084820053,0.0114878,87099.0,87098.0,0.19357]
[1764084820249,0.0114873,87102.0,87101.0,0.09715]
[1764084820549,0.1031273,87102.0,87101.0,0.37601]
[1764084820750,0.5578173,87102.0,87101.0,0.18244]
[1764084821254,0.18553,87102.0,87101.0,0.2903474]
[1764084821552,0.46494189,87103.0,87102.0,0.18653]
[1764084821751,0.56206189,87103.0,87102.0,0.09364]
[1764084821946,0.56206189,87103.0,87102.0,0.18653]
[1764084822347,0.19303,87101.0,87100.0,0.18244]
[1764084822550,0.36903189,87103.0,87102.0,0.09364]
[1764084822850,0.56206189,87103.0,87102.0,0.09364]
[1764084823046,0.36903189,87103.0,87102.0,0.18653]
[1764084823450,0.00823189,87103.0,87102.0,0.18653]
[1764084824554,9e-08,87105.0,87104.0,0.18653]
[1764084824955,0.3608,87136.0,87135.0,0.18653]
[1764084825141,0.3608,87136.0,87135.0,0.33873]
[1764084826452,0.55383,87136.0,87135.0,0.33873]
[1764084826644,0.55383,87136.0,87135.0,0.1522]
[1764084827249,0.19303,87128.0,87127.0,0.00017215]
[1764084827448,0.19303,87128.0,87127.0,0.18257215]
[1764084827651,0.3608,87136.0,87135.0,0.18653]
[1764084827652,0.55383,87136.0,87135.0,0.18653]
[1764084827857,0.3608,87136.0,87135.0,0.09364]
[1764084828044,0.19303,87133.0,87127.0,0.18257215]
[1764084828443,0.19303,87128.0,87127.0,0.00017215]
[1764084828649,0.55383,87128.0,87127.0,0.18033215]
[1764084828849,0.55383,87128.0,87127.0,0.18253215]
[1764084829755,0.3608,87128.0,87127.0,0.36906215]
[1764084829954,0.3608,87136.0,87127.0,0.36906215]
[1764084830154,0.7508,87136.0,87127.0,0.36906215]
[1764084830351,0.19303,87128.0,87127.0,0.00017215]
[1764084830752,0.19303,87128.0,87127.0,0.18249215]
[1764084830952,0.19303,87128.0,87127.0,0.00017215]
[1764084831160,0.19303,87128.0,87096.0,0.05663]
[1764084831161,0.19303,87124.0,87123.0,0.15972]
[1764084831358,0.60303,87124.0,87123.0,0.15972]
[1764084831862,0.60303,87124.0,87110.0,0.10400647]
[1764084832053,0.60303,87124.0,87111.0,0.18232]
[1764084832247,0.0114846,87123.0,87109.0,0.3722863]
[1764084832455,0.09712,87111.0,87110.0,0.10400647]
[1764084832656,0.19303,87111.0,87110.0,0.09364]
[1764084832853,0.19303,87110.0,87109.0,0.3608]
[1764084833053,0.19303,87110.0,87109.0,0.54308]
[1764084833560,0.19303,87110.0,87109.0,0.3608]
[1764084833961,0.19303,87109.0,87108.0,0.18245215]
[1764084834166,0.6245164,87109.0,87108.0,0.00017215]
[1764084834366,0.61303,87109.0,87108.0,0.00017215]
[1764084835163,0.61303,87109.0,87108.0,0.01165865]
[1764084835955,0.61303,87109.0,87108.0,0.00017215]
[1764084838667,0.61303,87109.0,87108.0,0.16770215]
[1764084838960,0.61303,87109.0,87108.0,0.17918865]
[1764084839761,0.61303,87109.0,87108.0,0.08506215]
[1764084839959,0.61303,87109.0,87108.0,0.16770215]
[1764084840355,0.3608,87120.0,87119.0,0.011485]
[1764084840566,0.3608,87120.0,87119.0,0.179015]
[1764084840860,0.3722829,87136.0,87125.0,0.1790143]
[1764084841058,0.3722829,87136.0,87125.0,0.34981]
[1764084841255,0.16618145,87126.0,87125.0,0.34981]
[1764084841766,1.45e-06,87126.0,87125.0,0.71061]
[1764084842063,0.3608,87143.0,87142.0,0.179012]
[1764084842263,0.3608,87143.0,87142.0,0.361292]
[1764084843354,0.08379,87148.0,87147.0,0.08489]
[1764084843556,0.08379,87148.0,87147.0,0.16753]
[1764084843758,0.3608,87151.0,87144.0,0.05101]
[1764084843759,0.3608,87151.0,87150.0,0.16753]
[1764084844069,0.3608,87161.0,87150.0,0.16753]
[1764084844363,0.3608,87161.0,87148.0,0.0114812]
[1764084844364,0.3608,87161.0,87160.0,0.1790096]
[1764084844565,0.3608,87161.0,87160.0,0.3612496]
[1764084844952,0.16601,87173.0,87160.0,0.18224]
[1764084845158,0.0114788,87167.0,87166.0,0.08489]
[1764084845357,0.1774892,87163.0,87162.0,0.3608]
[1764084845666,0.16601,87156.0,87155.0,0.44569]
[1764084845862,0.011479,87165.0,87156.0,0.05101]
[1764084846168,0.371479,87165.0,87156.0,0.05101]
[1764084846359,0.3722786,87168.0,87164.0,0.16753]
[1764084846558,0.0114794,87163.0,87156.0,0.05101]
[1764084846764,0.3608,87168.0,87160.0,0.0114796]
[1764084846952,0.3608,87168.0,87156.0,0.05101]
[1764084846953,0.8022786,87168.0,87156.0,0.05101]
[1764084847157,0.0114792,87164.0,87163.0,0.16753]
[1764084847358,0.3722787,87168.0,87163.0,0.16753]
[1764084847553,0.3722787,87168.0,87156.0,0.05101]
[1764084847554,0.4408,87168.0,87167.0,0.16753]
[1764084847761,0.4408,87168.0,87158.0,0.17409614]
[1764084847762,0.0114768,87182.0,87172.0,0.011478]
[1764084847968,0.08379,87176.0,87175.0,0.0941176]
[1764084848171,0.56601,87176.0,87175.0,0.08264]
[1764084848666,0.56601,87176.0,87175.0,0.16753]
[1764084848869,0.56601,87176.0,87175.0,0.08489]
[1764084849262,0.48379,87176.0,87175.0,0.16753]
[1764084849661,0.48379,87176.0,87168.0,0.22510614]
[1764084849662,0.0114779,87173.0,87168.0,0.05101]
[1764084849866,0.53601,87173.0,87172.0,0.16753]
[1764084850267,0.16601,87169.0,87164.0,0.0114791]
[1764084850456,0.16601,87169.0,87168.0,0.08489]
[1764084850965,0.3608,87173.0,87172.0,0.16753]
[1764084851469,0.16198,87177.0,87176.0,0.08489]
[1764084851659,0.08379,87177.0,87176.0,0.16202]
[1764084851859,0.0851,87170.0,87168.0,0.05118215]
[1764084852059,0.16329,87169.0,87168.0,0.00017215]
[1764084852464,0.16329,87169.0,87168.0,0.18237215]
[1764084852869,0.16329,87154.0,87153.0,0.3608]
[1764084853073,0.16329,87144.0,87143.0,0.3608]
[1764084853259,0.16329,87134.0,87124.0,0.06034231]
[1764084853460,0.0114817,87144.0,87137.0,0.08458]
[1764084853661,0.0114827,87137.0,87129.0,0.3608]
[1764084853963,0.16329,87137.0,87129.0,0.3608]
[1764084854165,0.16329,87137.0,87133.0,0.0114831]
[1764084854460,0.16329,87137.0,87136.0,0.08458]
[1764084854661,0.00017215,87142.0,87141.0,0.16171]
[1764084854875,0.00017215,87142.0,87141.0,0.34391]
[1764084855166,0.00017215,87142.0,87133.0,0.09381236]
[1764084855373,0.00017215,87142.0,87137.0,0.08458]
[1764084855572,0.00017215,87142.0,87141.0,0.16171]
[1764084855774,0.00017215,87142.0,87141.0,0.34391]
[1764084856163,0.08527215,87142.0,87141.0,0.34391]
[1764084856359,0.00017215,87142.0,87141.0,0.3553921]
[1764084856968,0.0114826,87138.0,87133.0,0.25451823]
[1764084857267,0.0965839,87128.0,87127.0,0.16171]
[1764084857475,0.16329,87125.0,87108.0,0.60149734]
[1764084857659,0.86329,87125.0,87120.0,0.1822]
[1764084857867,0.16329,87121.0,87108.0,0.54115503]
[1764084858071,0.0851,87109.0,87108.0,0.49308503]
[1764084858268,0.0851,87109.0,87108.0,0.67528503]
[1764084858473,0.3608,87116.0,87109.0,0.0114864]
[1764084858776,0.0851,87115.0,87110.0,0.0114862]
[1764084858978,0.00017215,87121.0,87120.0,0.1731949]
[1764084859270,0.00017215,87121.0,87120.0,0.5339949]
[1764084859871,0.3608,87140.0,87139.0,0.2212624]
[1764084860071,0.3608,87140.0,87139.0,0.39198]
[1764084860268,0.4459,87140.0,87139.0,0.34391]
[1764084860664,0.3608,87140.0,87139.0,0.34391]
[1764084861377,0.3608,87140.0,87139.0,0.16171]
[1764084861568,0.3608,87140.0,87139.0,0.34391]
[1764084861773,0.3608,87140.0,87139.0,0.3553924]
[1764084861969,0.3608,87140.0,87139.0,0.16171]
[1764084862176,0.52409,87140.0,87139.0,0.1822]
[1764084862372,0.3608,87140.0,87139.0,0.3553924]
[1764084863073,0.00017215,87148.0,87147.0,0.16171]
[1764084863272,0.0851,87147.0,87146.0,0.0114815]
[1764084863574,0.0114815,87146.0,87139.0,0.1822]
[1764084863777,0.16329,87141.0,87140.0,0.1822]
[1764084863967,0.16329,87141.0,87140.0,0.1936823]
[1764084864164,0.0851,87146.0,87145.0,0.0960615]
[1764084864369,0.2051,87146.0,87145.0,0.0960615]
[1764084864575,0.5151,87146.0,87145.0,0.08458]
[1764084864873,0.5151,87146.0,87131.0,0.00017215]
[1764084864874,0.0114833,87133.0,87131.0,0.00017215]
[1764084865071,0.0114832,87134.0,87131.0,0.00017215]
[1764084865273,0.16329,87132.0,87131.0,0.00017215]
[1764084865473,0.55329,87132.0,87131.0,0.00017215]
[1764084865880,0.1747756,87116.0,87111.0,0.0114861]
[1764084866173,0.16329,87116.0,87113.0,0.0114858]
[1764084866374,0.3608,87121.0,87120.0,0.16171]
[1764084866678,0.0114853,87118.0,87114.0,0.0114857]
[1764084866979,0.3608,87121.0,87120.0,0.0960649]
[1764084867175,0.4459,87121.0,87120.0,0.08458]
[1764084867479,0.0851,87118.0,87117.0,0.0114852]
[1764084867678,0.4651,87118.0,87114.0,0.0114857]
[1764084867876,0.4651,87118.0,87112.0,0.18237215]
[1764084867877,0.0965857,87115.0,87112.0,0.18237215]
[1764084868071,0.0851,87115.0,87112.0,0.00017215]
[1764084868273,0.16329,87113.0,87112.0,0.00017215]
[1764084868471,0.58329,87113.0,87112.0,0.18237215]
[1764084869274,0.94409,87113.0,87112.0,0.00017215]
[1764084870780,0.3608,87113.0,87112.0,0.16188215]
[1764084870982,0.16329,87116.0,87115.0,0.0960654]
[1764084871172,0.0114853,87118.0,87117.0,0.08458]
[1764084871374,0.0851,87116.0,87115.0,0.0114854]
[1764084871572,0.1747758,87113.0,87112.0,0.00017215]
[1764084871773,0.5947758,87113.0,87112.0,0.00017215]
[1764084872476,0.58329,87113.0,87112.0,0.16188215]
[1764084872676,0.16329,87116.0,87115.0,0.0114855]
[1764084872873,0.54329,87116.0,87115.0,0.0114855]
[1764084873078,0.16329,87113.0,87112.0,0.00017215]
[1764084873277,0.54329,87113.0,87112.0,0.00017215]
[1764084873684,0.90409,87113.0,87112.0,0.00017215]
[1764084875079,0.52409,87113.0,87112.0,0.00017215]
[1764084875283,0.91409,87113.0,87112.0,0.00017215]
[1764084875478,0.88651185,87113.0,87112.0,0.00017215]
[1764084876275,0.90676185,87113.0,87112.0,0.00017215]
[1764084876474,0.90676185,87113.0,87085.0,0.08159492]
[1764084876475,0.174777,87104.0,87100.0,0.16448]
[1764084876786,0.61329,87104.0,87101.0,0.0114873]
[1764084876979,0.61329,87104.0,87100.0,0.1822]
[1764084876980,0.624777,87104.0,87100.0,0.1822]
[1764084877479,0.624777,87104.0,87102.0,0.0114872]
[1764084877671,0.3608,87105.0,87104.0,0.173197]
[1764084878474,0.52409,87105.0,87104.0,0.011487]
[1764084878687,0.94409,87105.0,87104.0,0.011487]
[1764084879079,0.011487,87104.0,87098.0,0.18224]
[1764084879281,0.594777,87104.0,87097.0,0.18224]
[1764084879489,0.304777,87104.0,87103.0,0.08472756]
[1764084879677,0.574777,87104.0,87103.0,0.08472756]
[1764084879874,0.1747778,87098.0,87097.0,0.18224]
[1764084880079,0.16329,87096.0,87095.0,0.16188215]
[1764084880282,0.61329,87096.0,87095.0,0.17337035]
[1764084880682,0.38329,87096.0,87095.0,0.17337035]
[1764084880989,0.38337845,87096.0,87095.0,0.17337035]
[1764084881891,0.38337845,87096.0,87095.0,0.00017215]
[1764084882183,8.845e-05,87096.0,87095.0,0.16224215]
[1764084884577,0.3608,87113.0,87096.0,0.04804]
[1764084884884,0.011486,87112.0,87097.0,0.3608]
[1764084885084,0.07723,87109.0,87108.0,0.0114864]
[1764084885284,0.58641,87109.0,87108.0,0.08058]
[1764084885482,0.58641,87109.0,87095.0,0.00017215]
[1764084885483,0.14972,87096.0,87095.0,0.00017215]
[1764084885687,1.2805812,87096.0,87095.0,0.00017215]
[1764084885888,0.14972,87081.0,87080.0,0.3608]
[1764084886083,0.1612101,87081.0,87080.0,0.3608]
[1764084886281,0.0114911,87073.0,87072.0,0.21014]
[1764084886483,0.0115523,87073.0,87072.0,0.48577427]
[1764084886678,6.12e-05,87073.0,87072.0,0.48577427]
[1764084886887,1.2e-06,87073.0,87072.0,0.48577427]
[1764084887492,0.00017225,87081.0,87080.0,0.1735602]
[1764084887790,0.16150235,87081.0,87080.0,0.3608]
[1764084887987,0.57150235,87081.0,87080.0,0.3608]
[1764084888180,0.14984,87072.0,87071.0,0.54304]
[1764084888377,0.0114922,87065.0,87064.0,0.16224225]
[1764084888584,0.0114922,87065.0,87064.0,0.43760938]
[1764084888585,0.1613322,87065.0,87064.0,0.43760938]
[1764084888783,0.1613322,87065.0,87064.0,0.26299225]
[1764084889385,0.1613322,87065.0,87064.0,0.08075225]
[1764084889586,0.14984,87065.0,87064.0,0.16224225]
[1764084890878,0.1613322,87065.0,87064.0,0.08075225]
[1764084891082,0.0114917,87069.0,87064.0,0.17373455]
[1764084891387,0.0114917,87069.0,87068.0,0.1735618]
[1764084891388,0.15492,87069.0,87068.0,0.1735618]
[1764084891582,0.00017225,87081.0,87080.0,0.08058]
[1764084891583,0.07509225,87081.0,87080.0,0.08058]
[1764084891789,0.52509225,87081.0,87080.0,0.16207]
[1764084891978,0.60001225,87081.0,87080.0,0.16207]
[1764084892180,0.14984,87077.0,87076.0,0.04804]
[1764084892381,0.14984,87077.0,87072.0,0.3608]
[1764084892382,0.1613311,87073.0,87072.0,0.3608]
[1764084892581,0.1613311,87073.0,87072.0,0.70515]
[1764084893188,0.1613311,87073.0,87072.0,0.26286]
[1764084893385,0.0864118,87068.0,87067.0,0.16207]
[1764084893585,0.1613318,87068.0,87067.0,0.16207]
[1764084893782,0.1613318,87068.0,87067.0,0.34435]
[1764084893986,0.14984,87068.0,87067.0,0.34435]
[1764084894391,0.00017225,87081.0,87071.0,0.1735614]
[1764084894589,0.1613316,87069.0,87068.0,0.26286]
[1764084894792,0.1613316,87069.0,87068.0,0.08058]
[1764084894992,0.1613316,87069.0,87068.0,0.26286]
[1764084895400,0.1613322,87065.0,87064.0,0.36097225]
[1764084895697,0.1613322,87065.0,87064.0,0.54325225]
[1764084895992,0.1613322,87065.0,87064.0,0.70532225]
[1764084896183,0.14984,87065.0,87064.0,0.44155225]
[1764084896388,0.14984,87065.0,87064.0,0.70532225]
[1764084897691,0.07492,87065.0,87064.0,0.70532225]
[1764084898087,0.14984,87072.0,87064.0,0.54325225]
[1764084898397,0.3313312,87072.0,87071.0,0.16207]
[1764084898590,0.1613312,87072.0,87071.0,0.16207]
[1764084898795,0.6113312,87072.0,87071.0,0.16207]
[1764084898991,0.00017225,87081.0,87076.0,0.0595307]
[1764084899199,0.17150235,87081.0,87080.0,0.16207]
[1764084899498,0.57150235,87081.0,87080.0,0.16207]
[1764084899696,0.56001225,87081.0,87080.0,0.16207]
[1764084900395,0.41017225,87081.0,87076.0,0.21011]
[1764084900592,0.00017225,87081.0,87080.0,0.1735602]
[1764084900793,0.00017225,87081.0,87080.0,0.34435]
[1764084901300,0.57001225,87081.0,87080.0,0.18228]
[1764084901598,0.14984,87073.0,87072.0,0.44138]
[1764084901800,0.14984,87073.0,87072.0,0.18228]
[1764084902001,0.1613322,87065.0,87061.0,0.04807]
[1764084902300,0.1613322,87065.0,87064.0,0.26303225]
[1764084902501,0.1613322,87065.0,87064.0,0.00017225]
[1764084902502,0.5313322,87065.0,87064.0,0.00017225]
[1764084902696,0.14984,87051.0,87050.0,0.00012975]
[1764084902896,0.541334,87051.0,87050.0,0.00012975]
[1764084903497,0.0114959,87037.0,87036.0,0.43085]
[1764084903710,0.0114959,87037.0,87036.0,0.68345]
[1764084903896,0.0806459,87037.0,87036.0,0.68345]
[1764084904204,0.0806459,87037.0,87028.0,0.00017225]
[1764084904205,0.14532,87033.0,87029.0,0.0114968]
[1764084904501,0.14532,87033.0,87028.0,0.00017225]
[1764084904502,0.14532,87029.0,87028.0,0.00017225]
[1764084904694,0.14532,87008.0,87000.0,0.04185]
[1764084904897,0.14532,87008.0,86996.0,0.3608]
[1764084904898,0.00012794,87007.0,86996.0,0.0115011]
[1764084905102,0.35012794,87007.0,87006.0,0.14037]
[1764084906110,0.41927794,87007.0,87006.0,0.14037]
[1764084906519,0.41927794,87007.0,87000.0,0.04185]
[1764084906520,0.06915,87001.0,87000.0,0.04185]
[1764084906818,0.06915,87001.0,87000.0,0.25237]
[1764084907015,0.54532,87001.0,87000.0,0.18232]
[1764084907205,0.14532,86999.0,86998.0,0.00017236]
[1764084907412,0.57532,86999.0,86998.0,0.00017236]
[1764084908319,0.43,86999.0,86998.0,0.14054236]
[1764084908619,0.36092794,87007.0,86998.0,0.14054236]
[1764084908620,0.36092794,87007.0,87002.0,0.0115004]
[1764084908819,0.29012794,87007.0,87006.0,0.07005]
[1764084909113,0.29012794,87007.0,87006.0,0.14037]
[1764084909318,0.29012794,87007.0,86998.0,0.00017236]
[1764084909319,0.43544794,87007.0,86998.0,0.00017236]
[1764084909517,0.14532,86999.0,86998.0,0.00017236]
[1764084909706,0.90532,86999.0,86998.0,0.00017236]
[1764084910106,0.53532,86999.0,86998.0,0.00017236]
[1764084910312,0.95612,86999.0,86998.0,0.00017236]
[1764084910507,0.1568223,86988.0,86975.0,0.52512]
[1764084910706,0.14532,86976.0,86975.0,0.52512]
[1764084910911,0.5768239,86976.0,86975.0,0.16432]
[1764084911221,0.56532,86976.0,86975.0,0.16432]
[1764084912417,0.0115041,86975.0,86971.0,0.3608]
[1764084912616,0.14133,86972.0,86971.0,0.3608]
[1764084912822,0.56147468,86972.0,86971.0,0.3608]
[1764084913214,0.06968,86968.0,86967.0,0.00011538]
[1764084913514,0.522835,86968.0,86967.0,0.00011538]
[1764084913915,0.51133,86968.0,86967.0,0.00011538]
[1764084915324,0.14133,86956.0,86955.0,0.18236]
[1764084915616,0.51133,86956.0,86955.0,0.18236]
[1764084916218,0.14133,86958.0,86955.0,0.18236]
[1764084916418,0.14133,86956.0,86955.0,0.18236]
[1764084916618,0.53133,86956.0,86955.0,0.18236]
[1764084916815,0.39,86956.0,86955.0,0.32734]
[1764084917218,0.53133,86956.0,86955.0,0.18236]
[1764084917725,0.53133,86956.0,86955.0,0.25557]
[1764084917924,0.53133,86956.0,86955.0,0.18236]
[1764084918124,0.53133,86956.0,86937.0,0.3608]
[1764084918125,0.1528378,86947.0,86946.0,0.3608]
[1764084918419,0.46968,86947.0,86946.0,0.07321]
[1764084918611,0.46968,86947.0,86946.0,0.14498]
[1764084919225,0.54133,86947.0,86946.0,0.14498]
[1764084919424,0.14133,86941.0,86940.0,0.22614]
[1764084919724,0.46968,86941.0,86940.0,0.37112]
[1764084919925,0.4811886,86941.0,86940.0,0.37112]
[1764084920127,0.5528386,86941.0,86940.0,0.18244]
[1764084920426,0.4,86941.0,86940.0,0.37112]
[1764084921730,0.4,86941.0,86940.0,0.3826287]
[1764084921731,0.54133,86941.0,86940.0,0.3826287]
[1764084922022,0.54133,86941.0,86940.0,0.37112]
[1764084922216,0.54133,86941.0,86940.0,0.18244]
[1764084922622,0.54133,86941.0,86940.0,0.25565]
[1764084923323,0.14133,86929.0,86918.0,0.40265]
[1764084923627,0.00012806,86929.0,86928.0,0.54958673]
[1764084924526,0.56145806,86929.0,86928.0,0.54958673]
[1764084925528,0.56145806,86929.0,86928.0,0.00010673]
[1764084926525,0.14145806,86929.0,86928.0,0.18878673]
[1764084926724,0.51145806,86929.0,86928.0,0.18878673]
[1764084927226,0.51145806,86929.0,86928.0,0.00010673]
[1764084927429,0.51145806,86929.0,86928.0,0.11701673]
[1764084927724,0.56145806,86929.0,86928.0,0.18878673]
[1764084928321,0.31980806,86929.0,86928.0,0.18878673]
[1764084928828,0.25012806,86929.0,86928.0,0.18878673]
[1764084929124,0.00012806,86929.0,86928.0,0.18878673]
[1764084929629,0.00017246,86937.0,86936.0,0.1564892]
[1764084929823,0.42017246,86937.0,86936.0,0.50578]
[1764084930028,0.00017246,86937.0,86936.0,0.50578]
[1764084930428,0.06985246,86937.0,86936.0,0.50578]
[1764084930640,0.06995396,86937.0,86936.0,0.50578]
[1764084930928,0.00027396,86937.0,86936.0,0.50578]
[1764084931522,0.01178306,86937.0,86936.0,0.50578]
[1764084931728,0.00027396,86937.0,86936.0,0.50578]
[1764084933226,0.14133,86958.0,86944.0,0.0437]
[1764084933426,0.21101,86945.0,86944.0,0.2001882]
[1764084933728,0.21101,86945.0,86944.0,0.5609882]
[1764084933729,0.52133,86945.0,86944.0,0.5609882]
[1764084933922,0.14133,86945.0,86944.0,0.5609882]
[1764084934325,0.14133,86945.0,86944.0,0.54948]
[1764084934530,0.73266,86945.0,86944.0,0.18868]
[1764084935233,0.59133,86945.0,86944.0,0.18868]
[1764084935532,0.59133,86945.0,86944.0,0.11691]
[1764084935933,0.59133,86945.0,86944.0,0.18868]
[1764084936129,0.3608,86952.0,86951.0,0.14498]
[1764084936338,0.95213,86952.0,86951.0,0.07321]
[1764084936934,0.59133,86952.0,86951.0,0.07321]
[1764084937330,0.59133,86952.0,86944.0,0.18868]
[1764084937331,0.011508,86945.0,86944.0,0.18868]
[1764084937635,0.8008,86945.0,86936.0,0.54349246]
[1764084937833,0.00017246,86953.0,86952.0,0.1564871]
[1764084938130,0.00017246,86953.0,86952.0,0.5172871]
[1764084939239,0.53150246,86953.0,86952.0,0.14498]
[1764084939840,0.53150246,86953.0,86952.0,0.07321]
[1764084940035,0.53150246,86953.0,86952.0,0.14498]
[1764084940333,0.0115076,86948.0,86947.0,0.07321]
[1764084940538,0.56133,86948.0,86947.0,0.14498]
[1764084940740,0.0115073,86951.0,86950.0,0.14498]
[1764084940939,0.00017246,86953.0,86952.0,0.14498]
[1764084941139,0.43017246,86953.0,86952.0,0.14498]
[1764084941535,0.03017246,86953.0,86952.0,0.50578]
[1764084941740,0.00017246,86953.0,86952.0,0.50578]
[1764084944334,0.52117246,86953.0,86952.0,0.3275]
[1764084945345,0.101,86945.0,86944.0,0.47266]
[1764084945536,0.541,86945.0,86944.0,0.54602]
[1764084946338,0.541,86945.0,86944.0,0.04095]
[1764084946851,0.0620087,86940.0,86939.0,0.32679]
[1764084947149,0.0505,86948.0,86947.0,0.14427]
[1764084947336,0.0115075,86949.0,86948.0,0.14427]
[1764084947543,0.3815075,86949.0,86948.0,0.14427]
[1764084947745,0.4825075,86949.0,86948.0,0.14427]
[1764084950336,0.112508,86945.0,86944.0,0.18522]
[1764084950645,0.502508,86945.0,86944.0,0.18522]
[1764084951443,0.502508,86945.0,86939.0,0.18252]
[1764084951638,0.1125087,86940.0,86939.0,0.32679]
[1764084951838,0.5625087,86940.0,86939.0,0.32679]
[1764084952449,0.1125091,86937.0,86936.0,0.00017246]
[1764084952642,0.1125101,86929.0,86928.0,0.00010673]
[1764084952839,1.3377771,86929.0,86928.0,0.00010673]
[1764084953036,0.0115124,86912.0,86911.0,0.18797]
[1764084953337,0.0115124,86912.0,86906.0,0.51616]
[1764084953338,0.1125131,86907.0,86906.0,0.15536]
[1764084953539,0.1125131,86907.0,86900.0,0.04095]
[1764084953540,0.101,86900.0,86899.0,0.3608]
[1764084953738,0.471,86900.0,86899.0,0.3608]
[1764084953945,0.0505,86892.0,86891.0,0.0824251]
[1764084954141,0.37010036,86900.0,86890.0,0.04095]
[1764084954142,0.00010036,86900.0,86899.0,0.14427]
[1764084954341,0.39010036,86900.0,86899.0,0.1557841]
[1764084954540,0.44060036,86900.0,86899.0,0.14427]
[1764084954745,0.101,86896.0,86895.0,0.0115145]
[1764084954946,0.5525146,86896.0,86895.0,0.07091]
[1764084955453,0.0620152,86891.0,86890.0,0.11186]
[1764084955646,0.4205,86891.0,86890.0,0.18522]
[1764084955850,0.37,86891.0,86890.0,0.18522]
[1764084956051,0.00010036,86900.0,86899.0,0.1557841]
[1764084956351,0.00010036,86900.0,86899.0,0.5165841]
[1764084958143,0.00010036,86900.0,86899.0,0.50507]
[1764084958946,0.22010036,86900.0,86899.0,0.50507]
[1764084959343,0.30936036,86900.0,86899.0,0.50507]
[1764084959544,0.22010036,86900.0,86890.0,0.04095]
[1764084959743,0.27037436,86900.0,86899.0,0.11803]
[1764084959948,0.27037436,86900.0,86894.0,0.05917]
[1764084959949,0.0890348,86895.0,86894.0,0.05917]
[1764084960240,0.0890352,86891.0,86890.0,0.04095]
[1764084960552,0.0890352,86891.0,86880.0,0.22347]
[1764084960553,0.0115153,86890.0,86889.0,0.15415]
[1764084960753,0.0890365,86881.0,86880.0,0.15898]
[1764084961049,0.07752,86880.0,86873.0,0.0115176]
[1764084961248,0.0890375,86874.0,86873.0,0.05917]
[1764084961458,0.07752,86872.0,86871.0,0.3608]
[1764084961658,0.44752,86872.0,86871.0,0.47883]
[1764084961845,0.00010574,86881.0,86880.0,0.1656666]
[1764084962045,0.36010574,86881.0,86880.0,0.1656666]
[1764084962745,0.00010574,86881.0,86880.0,0.1656666]
[1764084963051,0.3608,86905.0,86888.0,0.1295456]
[1764084963247,0.3608,86905.0,86888.0,0.4903456]
[1764084963453,0.0115145,86896.0,86888.0,0.47883]
[1764084963746,0.07791257,86889.0,86888.0,0.47883]
[1764084963948,0.03904257,86889.0,86888.0,0.47883]
[1764084964457,0.45791257,86889.0,86888.0,0.3608]
[1764084964963,0.38017257,86889.0,86888.0,0.4903456]
[1764084965655,0.38017257,86889.0,86888.0,0.47883]